bitfinex/quotes_BTCUSD_20250530
["timestamp","ask_amount","ask_price","bid_price","bid_amount"]
[1748622865799,0.0958543,104060.0,104050.0,4e-05]
[1748622866461,0.0958543,104060.0,104050.0,0.19225528]
[1748622866671,0.0958543,104060.0,104050.0,0.26803511]
[1748622866888,0.76057445,104060.0,104050.0,4e-05]
[1748622867109,0.66472015,104060.0,104050.0,4e-05]
[1748622867334,0.66472015,104060.0,104050.0,0.19225528]
[1748622867335,0.0654,104060.0,104050.0,0.19225528]
[1748622867545,0.1708633,104060.0,104050.0,4e-05]
[1748622867747,0.1718634,104060.0,104050.0,0.00104]
[1748622867999,0.79140239,104060.0,104050.0,0.00104]
[1748622868235,0.39288878,104060.0,104050.0,0.00104]
[1748622868484,0.99338179,104060.0,104050.0,0.00104]
[1748622868727,0.18164554,104060.0,104050.0,0.19325528]
[1748622868965,0.18164554,104060.0,104040.0,0.19223253]
[1748622868966,0.14607376,104060.0,104040.0,0.19223253]
[1748622869200,0.08589124,104060.0,104050.0,0.19221528]
[1748622869441,0.0978543,104060.0,104050.0,0.22104645]
[1748622869918,0.0968543,104060.0,104050.0,0.22104645]
[1748622870143,0.64053558,104080.0,104060.0,0.34]
[1748622870370,0.001,104060.0,104050.0,0.259617]
[1748622870577,0.001,104060.0,104050.0,0.6092273]
[1748622870796,0.001,104060.0,104050.0,0.59961691]
[1748622871011,0.002,104060.0,104050.0,0.6102273]
[1748622871270,0.002,104060.0,104050.0,0.6198376]
[1748622871483,0.002,104060.0,104050.0,0.39879096]
[1748622871693,0.002,104060.0,104050.0,0.600617]
[1748622871904,0.0116091,104060.0,104050.0,0.39879096]
[1748622872162,0.001,104060.0,104050.0,0.38425011]
[1748622872368,0.001,104060.0,104050.0,0.39386087]
[1748622872599,0.001,104060.0,104050.0,0.60529739]
[1748622872821,0.1179443,104080.0,104060.0,0.55141399]
[1748622873038,0.1159443,104080.0,104070.0,0.5706127]
[1748622873263,0.02009,104080.0,104070.0,0.56100443]
[1748622873484,0.08139,104080.0,104070.0,0.34]
[1748622873698,0.08139,104080.0,104000.0,0.58284108]
[1748622873699,0.01922577,104020.0,104000.0,0.58284108]
[1748622873932,0.01922577,104020.0,104010.0,0.01500751]
[1748622874161,0.22107073,104040.0,104010.0,0.01500751]
[1748622874381,0.105467,104020.0,104010.0,0.01500751]
[1748622874609,0.10546709,104020.0,104010.0,0.01500751]
[1748622874826,0.10546709,104020.0,104010.0,0.41573753]
[1748622875044,0.0958543,104020.0,104010.0,0.41573753]
[1748622875251,0.09634412,104020.0,104010.0,0.40573002]
[1748622875912,0.09634412,104020.0,104010.0,0.60863368]
[1748622876121,0.09734412,104020.0,104010.0,0.63747594]
[1748622876324,0.09734412,104020.0,104010.0,0.63186213]
[1748622876538,0.09734412,104020.0,104010.0,0.62786213]
[1748622876769,0.09734412,104020.0,104010.0,1.0524364]
[1748622876984,0.09834412,104020.0,104010.0,1.88248036]
[1748622877199,0.09834412,104020.0,104010.0,1.29586021]
[1748622877417,0.09834412,104020.0,104010.0,1.31106821]
[1748622877646,0.09834412,104020.0,104010.0,1.91138836]
[1748622877865,0.05070868,104020.0,104010.0,1.95739336]
[1748622878087,0.01,104070.0,104060.0,0.54180654]
[1748622878295,0.10461495,104070.0,104060.0,0.4086058]
[1748622878534,0.17164417,104070.0,104060.0,0.34]
[1748622878742,0.18125234,104070.0,104060.0,0.34]
[1748622879042,0.17164417,104070.0,104060.0,0.34]
[1748622879433,0.18125225,104070.0,104060.0,0.34014687]
[1748622879637,0.05,104060.0,104050.0,0.01922133]
[1748622879857,0.05,104060.0,104050.0,0.00961076]
[1748622880058,0.05,104060.0,104050.0,0.21143661]
[1748622880277,0.1458543,104060.0,104040.0,0.62636015]
[1748622880484,0.0596091,104060.0,104040.0,0.60715297]
[1748622880687,0.1458543,104060.0,104040.0,0.61676465]
[1748622880892,0.12578987,104050.0,104040.0,0.41492]
[1748622881103,0.08539989,104050.0,104020.0,0.79253813]
[1748622881240,0.05,104040.0,104030.0,0.21147389]
[1748622881454,0.05,104040.0,104030.0,0.01922503]
[1748622881788,0.05,104040.0,104030.0,0.21147726]
[1748622881996,0.1458543,104050.0,104030.0,0.23070136]
[1748622882258,0.1458543,104050.0,104030.0,0.82140974]
[1748622882472,0.051,104040.0,104030.0,0.82440983]
[1748622882682,0.051,104040.0,104030.0,0.8147975]
[1748622882904,0.001,104040.0,104030.0,0.002]
[1748622883106,0.01921921,104060.0,104030.0,0.20186484]
[1748622883320,0.05,104040.0,104030.0,0.83202161]
[1748622883528,0.0968543,104050.0,104040.0,0.00961168]
[1748622883758,0.05,104040.0,104030.0,0.81479704]
[1748622884016,0.27425647,104040.0,104030.0,0.001]
[1748622884256,0.37011077,104040.0,104030.0,0.001]
[1748622884456,0.05,104010.0,104000.0,0.97596559]
[1748622884659,0.20186531,104030.0,104000.0,0.59679843]
[1748622884660,0.0958543,104030.0,104000.0,0.59679843]
[1748622884874,0.12469101,104030.0,104000.0,0.59679843]
[1748622885082,0.05,104020.0,104010.0,0.8118363]
[1748622885288,0.10124497,104040.0,104010.0,0.8118363]
[1748622885538,0.05,104010.0,104000.0,0.73980167]
[1748622885752,0.05,104010.0,104000.0,1.55165971]
[1748622885962,0.05,104010.0,104000.0,0.95133956]
[1748622886190,0.05,104020.0,104010.0,0.55151765]
[1748622886396,0.0096115,104040.0,104010.0,0.55151774]
[1748622886643,0.00961187,104030.0,104010.0,0.56213183]
[1748622886917,0.32653611,104040.0,104020.0,0.80220303]
[1748622886918,0.10546534,104040.0,104020.0,0.80220303]
[1748622887136,0.10546534,104040.0,104020.0,0.79259015]
[1748622887137,0.0958543,104040.0,104020.0,0.79259015]
[1748622887330,0.192233,104060.0,104030.0,0.60032015]
[1748622887331,0.23063692,104060.0,104030.0,0.60032015]
[1748622887507,0.11423105,104050.0,104030.0,0.00014689]
[1748622887761,0.09501,104050.0,104030.0,0.00014689]
[1748622887974,0.10462104,104050.0,104030.0,0.00014689]
[1748622888177,0.19223375,104040.0,104030.0,0.00014689]
[1748622888384,0.19223375,104040.0,104010.0,0.34]
[1748622888385,0.2018641,104030.0,104010.0,0.34]
[1748622888588,0.2018641,104030.0,104010.0,0.341]
[1748622888589,0.19225372,104030.0,104010.0,0.341]
[1748622889004,0.001,104030.0,104010.0,0.343]
[1748622889211,0.19225274,104030.0,104010.0,0.34]
[1748622889622,0.20286452,104030.0,104010.0,0.343]
[1748622889829,0.001,104030.0,104010.0,0.343]
[1748622890041,0.001,104030.0,104010.0,0.31418432]
[1748622890252,0.002,104030.0,104010.0,1.21526147]
[1748622890474,0.002,104030.0,104020.0,0.83597119]
[1748622890682,0.002,104030.0,104020.0,0.93182549]
[1748622891105,0.002,104030.0,104020.0,0.23781156]
[1748622891316,0.002,104030.0,104020.0,0.97954257]
[1748622891521,0.002,104030.0,104020.0,1.51720857]
[1748622891701,0.002,104030.0,104020.0,1.45854257]
[1748622891939,0.00014717,104040.0,104030.0,0.59338894]
[1748622892146,0.00014717,104040.0,104030.0,1.93257639]
[1748622892357,0.00014717,104040.0,104030.0,2.59796343]
[1748622892563,0.00014717,104040.0,104030.0,1.27128728]
[1748622892779,0.00014717,104040.0,104030.0,1.30302447]
[1748622892997,0.00014717,104040.0,104030.0,1.30828765]
[1748622893204,0.00014717,104040.0,104030.0,1.51026861]
[1748622893421,0.00014717,104040.0,104030.0,1.52480946]
[1748622893640,0.00014717,104040.0,104030.0,1.50549446]
[1748622893821,0.00114717,104040.0,104030.0,1.33544046]
[1748622894051,0.00114717,104040.0,104030.0,1.52108746]
[1748622894251,0.00214717,104040.0,104030.0,0.68794517]
[1748622894454,0.00214717,104040.0,104030.0,0.66874145]
[1748622894864,0.00214717,104040.0,104030.0,0.66874163]
[1748622895069,0.00214717,104040.0,104030.0,1.34938579]
[1748622895274,0.00214717,104040.0,104030.0,2.61898479]
[1748622895475,0.08602704,104080.0,104060.0,0.20179723]
[1748622895683,0.08717426,104080.0,104070.0,0.922111]
[1748622895896,0.08717426,104080.0,104070.0,0.93171927]
[1748622895897,0.01138439,104080.0,104070.0,0.93171927]
[1748622896100,0.01138439,104080.0,104070.0,1.25624227]
[1748622896310,0.01138439,104080.0,104070.0,1.0206113]
[1748622896519,0.01138439,104080.0,104070.0,1.3606113]
[1748622896729,0.01338439,104080.0,104070.0,1.3606113]
[1748622896944,0.01638439,104080.0,104070.0,1.3616113]
[1748622897151,0.01338439,104080.0,104070.0,1.8944143]
[1748622897359,0.01338439,104080.0,104070.0,2.34140794]
[1748622897564,0.07578987,104120.0,104080.0,0.35454085]
[1748622897777,0.07593706,104120.0,104110.0,0.35454085]
[1748622897951,0.07593706,104120.0,104110.0,0.4358543]
[1748622898405,0.00014719,104120.0,104110.0,0.5340861]
[1748622898617,0.20176612,104150.0,104130.0,0.01454085]
[1748622898828,0.26783903,104140.0,104130.0,0.75492]
[1748622899791,0.22145945,104150.0,104130.0,0.75492]
[1748622899792,0.00062354,104150.0,104140.0,0.34]
[1748622899975,0.20225496,104150.0,104140.0,0.35454085]
[1748622900172,0.20225496,104150.0,104130.0,0.8507743]
[1748622900173,0.19204916,104140.0,104130.0,0.8507743]
[1748622900380,0.21325287,104140.0,104130.0,0.46024633]
[1748622900586,0.21125342,104140.0,104130.0,0.36439203]
[1748622900813,0.44339759,104140.0,104130.0,0.02439203]
[1748622901016,0.21128876,104130.0,104110.0,0.01999095]
[1748622901243,0.0958543,104140.0,104120.0,0.20168421]
[1748622901453,0.00062354,104150.0,104130.0,0.34960338]
[1748622901625,0.00062354,104150.0,104130.0,1.12878375]
[1748622901785,0.00062354,104150.0,104140.0,0.01454085]
[1748622902099,0.00262354,104150.0,104140.0,1.30028109]
[1748622902299,0.00062354,104150.0,104140.0,1.30028109]
[1748622902570,0.00062354,104150.0,104140.0,1.36428109]
[1748622902706,0.00162354,104150.0,104140.0,2.63202209]
[1748622902909,0.00062354,104150.0,104140.0,2.24671509]
[1748622903116,0.00262354,104150.0,104140.0,1.54500609]
[1748622903320,0.08538689,104190.0,104160.0,0.35920094]
[1748622903542,0.08538689,104190.0,104160.0,0.4358543]
[1748622903543,0.28708895,104190.0,104160.0,0.4358543]
[1748622903717,0.07593703,104190.0,104160.0,1.25698662]
[1748622903923,0.27749205,104190.0,104170.0,0.0958543]
[1748622904146,0.27749205,104190.0,104180.0,0.34]
[1748622904147,0.00014716,104190.0,104180.0,0.34]
[1748622904588,0.00014716,104190.0,104180.0,0.4039]
[1748622904792,0.00014716,104190.0,104180.0,0.84318046]
[1748622904965,0.00014716,104190.0,104180.0,0.71586915]
[1748622905161,0.00014716,104190.0,104180.0,0.68644073]
[1748622905338,0.00014716,104190.0,104180.0,0.46072748]
[1748622905540,0.00014716,104190.0,104180.0,0.02487318]
[1748622905744,0.00014716,104190.0,104180.0,0.34]
[1748622905958,0.00014716,104190.0,104180.0,0.54157409]
[1748622906158,0.00014716,104190.0,104180.0,0.343]
[1748622906363,0.00014716,104190.0,104180.0,0.342]
[1748622906577,0.0647,104240.0,104220.0,0.34]
[1748622906776,0.16774782,104230.0,104220.0,0.05511088]
[1748622906978,0.0613,104210.0,104200.0,0.19193857]
[1748622907182,0.0305,104230.0,104210.0,0.00959591]
[1748622907393,0.0613,104230.0,104200.0,0.3587356]
[1748622907597,0.67471459,104220.0,104190.0,0.19195174]
[1748622907799,0.66512015,104220.0,104200.0,0.19193528]
[1748622908016,0.1606543,104220.0,104200.0,0.19193528]
[1748622908229,0.0324,104210.0,104190.0,0.53195174]
[1748622908442,0.0642,104210.0,104190.0,0.53195174]
[1748622908646,0.1600543,104210.0,104190.0,0.53195174]
[1748622908845,0.0303,104190.0,104180.0,0.19197353]
[1748622909158,0.0621,104190.0,104180.0,0.23037022]
[1748622909579,0.1591543,104200.0,104180.0,0.23037022]
[1748622909825,0.0302,104200.0,104190.0,0.20155475]
[1748622910088,0.001,104210.0,104190.0,0.20155475]
[1748622910089,0.0633,104220.0,104200.0,0.19192696]
[1748622910335,0.0958543,104210.0,104200.0,0.03006192]
[1748622910579,0.1591543,104210.0,104200.0,0.22200049]
[1748622911758,0.0328,104230.0,104210.0,0.19190924]
[1748622911991,0.0331,104220.0,104210.0,0.19190924]
[1748622912460,0.1286543,104230.0,104200.0,0.22200049]
[1748622912700,0.1586543,104220.0,104200.0,0.22200049]
[1748622912940,0.001,104210.0,104200.0,0.59079016]
[1748622913178,0.003,104210.0,104200.0,0.03006192]
[1748622913419,0.1599543,104210.0,104200.0,0.03006192]
[1748622913654,0.39025663,104210.0,104200.0,0.03006192]
[1748622913896,0.28777555,104210.0,104190.0,0.00014708]
[1748622914143,0.17744714,104200.0,104190.0,0.00014708]
[1748622914387,0.96970632,104200.0,104190.0,0.00014708]
[1748622915094,0.36938617,104200.0,104190.0,0.00014708]
[1748622915332,0.0958543,104200.0,104190.0,0.19210408]
[1748622915579,0.02978616,104210.0,104190.0,0.00974483]
[1748622915817,0.03838189,104210.0,104190.0,0.00014708]
[1748622916025,0.001,104200.0,104190.0,0.00114708]
[1748622916473,0.03838577,104200.0,104190.0,0.00014708]
[1748622916969,0.003,104210.0,104190.0,0.19210399]
[1748622917205,0.003,104210.0,104190.0,0.31675109]
[1748622917436,0.05,104200.0,104190.0,0.40213816]
[1748622917639,0.05,104200.0,104190.0,0.80743816]
[1748622917858,0.05,104200.0,104190.0,1.63159531]
[1748622918061,0.05,104200.0,104190.0,1.52050544]
[1748622918257,0.052,104200.0,104190.0,0.92018529]
[1748622918463,0.05,104200.0,104190.0,0.43600138]
[1748622918686,0.05,104200.0,104190.0,0.66634848]
[1748622918892,0.051,104200.0,104190.0,0.66634848]
[1748622919106,0.052,104200.0,104190.0,0.7100538]
[1748622919304,0.051,104200.0,104190.0,0.7100538]
[1748622919518,0.038,104200.0,104190.0,1.31037395]
[1748622919718,0.05719265,104200.0,104190.0,0.43600138]
[1748622919926,0.04759619,104200.0,104190.0,0.43600138]
[1748622920126,0.25872769,104200.0,104190.0,0.34014708]
[1748622920326,0.24913159,104200.0,104190.0,0.37416179]
[1748622920563,0.84945211,104200.0,104190.0,0.00014708]
[1748622920760,1.00730641,104200.0,104190.0,0.00014708]
[1748622921176,0.40698626,104200.0,104190.0,0.00014708]
[1748622921618,1.00630641,104200.0,104190.0,0.00014708]
[1748622921761,0.40898626,104200.0,104190.0,0.00014708]
[1748622921988,0.28513196,104200.0,104190.0,0.00014708]
[1748622922175,0.2551314,104200.0,104190.0,0.00014708]
[1748622922362,0.07278893,104200.0,104190.0,0.00014708]
[1748622922572,0.044,104200.0,104190.0,0.00014708]
[1748622922780,0.25513122,104200.0,104190.0,0.00014708]
[1748622923004,0.25213196,104200.0,104190.0,0.00014708]
[1748622923310,0.25772815,104200.0,104190.0,0.00014708]
[1748622923518,0.26832498,104200.0,104190.0,0.00014708]
[1748622923925,0.24913214,104200.0,104190.0,0.00014708]
[1748622924149,0.30983214,104200.0,104190.0,0.00114708]
[1748622924306,0.30983214,104200.0,104190.0,0.00014708]
[1748622924541,0.30983214,104200.0,104190.0,0.00114708]
[1748622924765,0.28053214,104200.0,104190.0,0.00114708]
[1748622924984,0.23093857,104200.0,104190.0,0.00114708]
[1748622925209,0.24053485,104200.0,104190.0,0.00114708]
[1748622925413,0.26832461,104200.0,104190.0,0.00114708]
[1748622925619,0.25113196,104200.0,104190.0,0.00114708]
[1748622926034,0.24813196,104200.0,104190.0,0.00114708]
[1748622926262,0.25872796,104200.0,104190.0,0.00114708]
[1748622926463,0.26832488,104200.0,104190.0,0.00114708]
[1748622926666,0.82045238,104200.0,104190.0,0.00114708]
[1748622927079,0.22213223,104200.0,104190.0,0.00114708]
[1748622927281,0.21053476,104200.0,104190.0,0.09700138]
[1748622927528,0.22972796,104200.0,104190.0,0.10670152]
[1748622927730,0.22013223,104200.0,104190.0,0.01084722]
[1748622927934,0.22113223,104200.0,104190.0,0.00114708]
[1748622928144,0.82145238,104200.0,104190.0,0.00114708]
[1748622928371,0.22113223,104200.0,104190.0,0.00114708]
[1748622928578,0.8202046,104200.0,104190.0,0.00114708]
[1748622928787,0.9779589,104200.0,104190.0,0.00114708]
[1748622929214,0.42763875,104200.0,104190.0,0.00114708]
[1748622929422,0.21125649,104140.0,104130.0,0.34]
[1748622929650,0.20164945,104150.0,104130.0,0.34]
[1748622929860,0.20162798,104170.0,104140.0,0.0958543]
[1748622930081,0.2208139,104160.0,104140.0,0.0958543]
[1748622930292,0.01920002,104160.0,104140.0,0.0958543]
[1748622930509,0.01919817,104170.0,104150.0,0.34]
[1748622930717,0.23999125,104170.0,104150.0,0.4358543]
[1748622930952,0.220813,104160.0,104150.0,0.4358543]
[1748622931158,0.2016128,104160.0,104150.0,0.34]
[1748622931364,0.21121313,104160.0,104150.0,0.34]
[1748622931576,0.21121267,104160.0,104130.0,0.59526609]
[1748622931786,0.01919974,104160.0,104150.0,0.003]
[1748622931991,0.21121304,104160.0,104150.0,0.003]
[1748622932445,0.21121304,104160.0,104140.0,0.34]
[1748622932446,0.2208343,104150.0,104140.0,0.34]
[1748622932657,0.21123277,104150.0,104140.0,0.34]
[1748622932889,0.22083412,104150.0,104140.0,0.34]
[1748622933108,0.21127389,104130.0,104120.0,0.00049054]
[1748622934809,0.22087727,104130.0,104120.0,0.00049054]
[1748622935019,0.26400927,104150.0,104120.0,0.43634484]
[1748622935248,0.00887855,104150.0,104130.0,0.62791456]
[1748622935476,0.00987855,104150.0,104140.0,0.54665143]
[1748622935699,0.2274192,104170.0,104150.0,0.19202871]
[1748622935700,0.00959886,104170.0,104150.0,0.19202871]
[1748622935924,0.23039079,104170.0,104140.0,0.64710772]
[1748622936206,0.01919993,104160.0,104140.0,0.4358543]
[1748622936489,0.23039106,104170.0,104140.0,0.70220486]
[1748622936706,0.01919984,104160.0,104150.0,0.4358543]
[1748622936920,0.21121286,104160.0,104150.0,0.4358543]
[1748622937132,0.20165851,104140.0,104120.0,0.06369054]
[1748622937334,0.01920629,104130.0,104120.0,0.09634484]
[1748622937534,0.00960273,104130.0,104120.0,0.43634484]
[1748622937799,0.23047963,104130.0,104120.0,0.00049054]
[1748622938008,0.21127408,104130.0,104120.0,0.00049054]
[1748622938862,0.19205643,104140.0,104120.0,0.00049054]
[1748622938863,0.2112546,104140.0,104120.0,0.09634484]
[1748622939067,0.02880874,104130.0,104120.0,0.1271107]
[1748622939282,0.02880874,104130.0,104120.0,0.09934484]
[1748622939486,0.02880874,104130.0,104120.0,0.10234484]
[1748622939487,0.01920555,104130.0,104120.0,0.10234484]
[1748622939691,0.01920555,104130.0,104120.0,0.09934484]
[1748622939947,0.2112737,104130.0,104120.0,0.00349054]
[1748622940134,0.2112737,104130.0,104120.0,0.00649054]
[1748622940351,0.79237235,104150.0,104130.0,0.34960328]
[1748622940352,0.00960125,104150.0,104130.0,0.34960328]
[1748622940570,0.01920067,104160.0,104130.0,0.63752351]
[1748622940779,0.01920149,104150.0,104130.0,0.60586921]
[1748622941001,0.01920002,104160.0,104140.0,0.0958543]
[1748622941442,0.00959978,104160.0,104140.0,0.40980585]
[1748622941660,0.02879998,104160.0,104140.0,0.1889563]
[1748622941878,0.02879998,104160.0,104140.0,0.38100446]
[1748622941879,0.01919974,104160.0,104140.0,0.38100446]
[1748622942084,0.00875222,104150.0,104140.0,0.73060682]
[1748622942294,0.00875222,104150.0,104140.0,0.5289563]
[1748622942800,0.00875222,104150.0,104140.0,1.55616886]
[1748622943017,0.00362691,104150.0,104140.0,3.41244186]
[1748622943245,0.00362691,104150.0,104140.0,3.41344186]
[1748622943456,0.0088577,104210.0,104190.0,0.34]
[1748622943658,0.29647811,104220.0,104200.0,0.0958543]
[1748622943891,0.09497847,104220.0,104200.0,0.0958543]
[1748622944098,0.27665195,104240.0,104200.0,0.0958543]
[1748622944099,0.27665195,104240.0,104210.0,0.53191932]
[1748622944310,0.22066858,104230.0,104220.0,0.0958543]
[1748622944520,0.22066977,104230.0,104220.0,0.0958543]
[1748622944736,0.19194302,104200.0,104190.0,0.0612]
[1748622944944,0.22073251,104200.0,104190.0,0.0958543]
[1748622945145,0.191957,104190.0,104180.0,0.34]
[1748622945352,0.23900078,104190.0,104180.0,0.37038709]
[1748622945571,0.00865396,104190.0,104180.0,0.37038709]
[1748622945774,0.00865453,104190.0,104180.0,0.6538577]
[1748622945978,0.01919081,104210.0,104180.0,1.69311179]
[1748622946178,0.2111118,104210.0,104190.0,0.1586543]
[1748622946419,0.20153485,104200.0,104190.0,0.0958543]
[1748622946649,0.22070826,104210.0,104190.0,0.0958543]
[1748622946858,0.21113122,104200.0,104190.0,0.10563973]
[1748622947068,0.35737608,104200.0,104190.0,0.00978543]
[1748622947280,0.02879473,104180.0,104150.0,0.27343002]
[1748622947491,0.01825007,104180.0,104160.0,0.0958543]
[1748622947744,0.00865171,104180.0,104160.0,0.36046513]
[1748622947969,0.19192099,104210.0,104180.0,0.19197336]
[1748622948212,0.00959637,104200.0,104190.0,0.4358543]
[1748622948417,0.23032461,104200.0,104190.0,0.4358543]
[1748622948624,0.28691164,104220.0,104190.0,0.4358543]
[1748622948892,0.00959352,104230.0,104210.0,0.34]
[1748622949102,0.01918602,104240.0,104210.0,0.4358543]
[1748622949312,0.00959251,104240.0,104220.0,0.0958543]
[1748622949524,0.00014697,104240.0,104220.0,0.31653846]
[1748622949794,0.00014697,104240.0,104230.0,0.56066471]
[1748622950030,0.00014697,104240.0,104230.0,0.64692549]
[1748622950285,0.0172187,104250.0,104240.0,0.34]
[1748622950516,0.0172187,104250.0,104240.0,0.67522544]
[1748622950748,0.0172187,104250.0,104240.0,0.84151146]
[1748622950975,0.0172187,104250.0,104240.0,0.91270406]
[1748622951204,0.00954495,104250.0,104240.0,3.24227406]
[1748622951426,0.0018712,104250.0,104240.0,3.25117865]
[1748622951661,0.0018712,104250.0,104240.0,2.59188506]
[1748622951891,0.00630802,104280.0,104250.0,0.00959223]
[1748622952113,0.21776852,104280.0,104260.0,0.4358543]
[1748622952523,0.00679808,104280.0,104260.0,0.44475896]
[1748622952993,0.00679808,104280.0,104260.0,0.72976114]
[1748622953206,0.00679808,104280.0,104260.0,0.7009854]
[1748622953417,0.00679808,104280.0,104270.0,0.0958543]
[1748622953626,0.00679808,104280.0,104270.0,2.72390458]
[1748622953854,0.3418667,104290.0,104280.0,0.34]
[1748622954093,0.54337441,104290.0,104280.0,0.4358543]
[1748622954302,0.34201366,104290.0,104280.0,0.44475857]
[1748622954533,0.34201366,104290.0,104280.0,0.4358543]
[1748622954727,0.34201366,104290.0,104280.0,0.64682429]
[1748622954930,0.34201366,104290.0,104280.0,1.63033129]
[1748622955140,0.33433991,104290.0,104280.0,0.8618103]
[1748622955413,0.32499757,104290.0,104280.0,0.7797573]
[1748622955618,0.32699757,104290.0,104280.0,0.44471396]
[1748622955845,0.52635869,104290.0,104280.0,0.12364091]
[1748622956055,0.19179133,104280.0,104270.0,0.03019553]
[1748622956253,0.21097018,104280.0,104270.0,0.11562027]
[1748622956466,0.21097018,104280.0,104270.0,0.11362059]
[1748622956694,0.51777071,104290.0,104270.0,0.11362059]
[1748622956910,0.32599757,104290.0,104280.0,0.4358543]
[1748622957125,0.32599757,104290.0,104280.0,0.44471167]
[1748622957337,0.33558548,104290.0,104280.0,0.44471167]
[1748622957589,0.53694752,104290.0,104280.0,0.00883102]
[1748622957835,0.2205591,104280.0,104270.0,0.00990371]
[1748622958056,0.21097009,104280.0,104270.0,0.01873715]
[1748622958286,0.36872439,104280.0,104270.0,0.02073769]
[1748622958519,0.36872439,104280.0,104270.0,0.01873769]
[1748622958752,1.00321388,104280.0,104270.0,0.00883398]
[1748622958962,1.00421388,104280.0,104270.0,0.00883398]
[1748622959176,0.36972439,104280.0,104270.0,0.00883398]
[1748622959595,0.37072439,104280.0,104270.0,0.00883398]
[1748622960212,0.27487009,104280.0,104270.0,0.00883398]
[1748622960627,0.28087009,104280.0,104270.0,0.00883398]
[1748622961291,0.27987009,104280.0,104270.0,0.00883398]
[1748622961501,0.37572439,104280.0,104270.0,0.00883398]
[1748622961760,0.21103052,104250.0,104240.0,0.01634998]
[1748622961964,0.27323052,104250.0,104240.0,0.01634998]
[1748622962187,0.24103052,104250.0,104240.0,0.01634998]
[1748622962396,0.27323052,104250.0,104240.0,0.01634998]
[1748622963066,0.27523052,104250.0,104240.0,0.01684004]
[1748622963280,0.27823052,104250.0,104240.0,0.01684004]
[1748622963520,0.27623052,104250.0,104240.0,0.01684004]
[1748622963732,0.24903052,104250.0,104240.0,0.01684004]
[1748622963982,0.21903052,104250.0,104240.0,0.01684004]
[1748622964668,0.21603052,104250.0,104240.0,0.01684004]
[1748622964903,0.27953052,104250.0,104240.0,0.01684004]
[1748622965117,0.37938482,104250.0,104240.0,0.01684004]
[1748622965358,0.37438482,104250.0,104240.0,0.01018778]
[1748622965677,0.21115204,104190.0,104180.0,0.028788]
[1748622965904,0.01919449,104190.0,104180.0,0.09600127]
[1748622966117,0.01919265,104200.0,104180.0,0.10559994]
[1748622966333,0.23072424,104200.0,104190.0,0.0958543]
[1748622966555,0.01959247,104200.0,104190.0,0.0958543]
[1748622966764,0.22112805,104200.0,104190.0,0.0958543]
[1748622967019,0.00999619,104200.0,104190.0,0.0958543]
[1748622967238,0.21153168,104200.0,104190.0,0.0958543]
[1748622967479,0.21153232,104200.0,104190.0,0.0958543]
[1748622967687,0.20155466,104190.0,104180.0,0.00314697]
[1748622968137,0.20155466,104190.0,104180.0,0.00414697]
[1748622968372,0.20155466,104190.0,104180.0,0.00314697]
[1748622968591,0.23345466,104190.0,104180.0,0.00014697]
[1748622968829,0.26355466,104190.0,104180.0,0.00014697]
[1748622969245,0.35940896,104190.0,104180.0,0.00114697]
[1748622969466,0.1578543,104190.0,104180.0,0.00014697]
[1748622969671,0.00959702,104190.0,104180.0,0.00114697]
[1748622970039,0.00999619,104200.0,104190.0,0.34]
[1748622970378,0.0099961,104200.0,104190.0,0.34]
[1748622970502,0.0099961,104200.0,104190.0,0.35454085]
[1748622970503,0.01959265,104200.0,104190.0,0.35454085]
[1748622970879,0.21153177,104200.0,104190.0,0.35454085]
[1748622971316,0.21153177,104200.0,104190.0,0.01454085]
[1748622971534,0.21653177,104200.0,104190.0,0.01554085]
[1748622971770,0.21153177,104200.0,104190.0,0.01454085]
[1748622972261,0.21253177,104200.0,104190.0,0.01454085]
[1748622972497,0.20155466,104190.0,104180.0,0.00014697]
[1748622972814,0.23405466,104190.0,104180.0,0.00014697]
[1748622973557,0.32990896,104190.0,104180.0,0.00014697]
[1748622973874,0.33090896,104190.0,104180.0,0.00014697]
[1748622974583,0.36340896,104190.0,104180.0,0.00014697]
[1748622975010,0.36440896,104190.0,104180.0,0.00014697]
[1748622975629,0.36340896,104190.0,104180.0,0.00014697]
[1748622975841,0.33290896,104190.0,104180.0,0.00014697]
[1748622976062,0.22374998,104190.0,104180.0,0.00014697]
[1748622976281,0.21415241,104190.0,104180.0,0.00014697]
[1748622976911,0.22374888,104190.0,104180.0,0.01468782]
[1748622977145,0.22374971,104190.0,104180.0,0.01468782]
[1748622977349,0.21515242,104190.0,104180.0,0.00014697]
[1748622977568,0.37590672,104190.0,104180.0,0.00014697]
[1748622978190,0.45169659,104190.0,104180.0,0.00014697]
[1748622978655,0.37590672,104190.0,104180.0,0.00014697]
[1748622979098,0.37290672,104190.0,104180.0,0.00014697]
[1748622979312,0.11604916,104190.0,104180.0,0.00014697]
[1748622979518,0.04438917,104190.0,104180.0,0.00114697]
[1748622979920,0.05398702,104190.0,104180.0,0.00114697]
[1748622980141,0.02519504,104190.0,104180.0,0.00114697]
[1748622980350,0.006,104190.0,104180.0,0.00114697]
[1748622980559,0.97855676,104190.0,104180.0,0.00114697]
[1748622980764,0.37680644,104190.0,104180.0,0.00114697]
[1748622981005,0.97755676,104190.0,104180.0,0.00114697]
[1748622981186,0.38080644,104190.0,104180.0,0.00214697]
[1748622981448,0.37680644,104190.0,104180.0,0.00114697]
[1748622981661,0.21315251,104190.0,104180.0,0.00014697]
[1748622981890,0.21515251,104190.0,104180.0,0.00014697]
[1748622982117,0.21315251,104190.0,104180.0,0.00014697]
[1748622982366,0.21515251,104190.0,104180.0,0.00114697]
[1748622982640,0.21515251,104190.0,104180.0,0.00014697]
[1748622982641,0.21115204,104190.0,104180.0,0.00014697]
[1748622982866,0.21115204,104190.0,104180.0,0.00114697]
[1748622982867,0.21515204,104190.0,104180.0,0.00114697]
[1748622983103,0.81590236,104190.0,104180.0,0.00014697]
[1748622983325,0.97075666,104190.0,104180.0,0.00014697]
[1748622983557,0.97275666,104190.0,104180.0,0.00014697]
[1748622984017,0.37500634,104190.0,104180.0,0.00014697]
[1748622984247,0.97575666,104190.0,104180.0,0.00014697]
[1748622984696,0.97575666,104190.0,104180.0,0.00024697]
[1748622986113,1.03575666,104190.0,104180.0,0.00024697]
[1748622986347,1.03575666,104190.0,104140.0,0.00556394]
[1748622986348,0.21123314,104150.0,104140.0,0.00556394]
[1748622986605,0.2113143,104110.0,104100.0,0.001718]
[1748622986858,0.2113143,104110.0,104100.0,0.09806284]
[1748622987085,0.2113143,104110.0,104100.0,0.10696102]
[1748622987318,0.1921045,104110.0,104100.0,0.01110672]
[1748622987575,0.20170954,104110.0,104100.0,0.01110672]
[1748622987799,0.20170954,104110.0,104100.0,0.01112424]
[1748622988047,0.20170954,104110.0,104100.0,0.00220854]